[Event "4th Batumi Cup 2018"]
[Site "Batumi"]
[Date "2018.07.03"]
[Round "2"]
[White "Duzhakov, Ilya"]
[Black "Al Hosani, Omran"]
[Result "1-0"]
[ECO "D85"]
[WhiteElo "2448"]
[BlackElo "2089"]
[Annotator "NA"]
[PlyCount "149"]
[EventDate "2018.07.03"]
[EventType "swiss"]
[EventCountry "GEO"]
[SourceTitle "playchess.com"]
[Source "ChessBase"]
[SourceQuality "1"]
[TimeControl "40/5400+30:1800+30"]

1. d4 {[%emt 0:02:07]} Nf6 {[%emt 0:00:00]} 2. c4 {[%emt 0:00:06]} g6 {[%emt 0:00:00]} 3. Nc3 {[%emt 0:00:17]} d5 {[%emt 0:00:00]} 4. cxd5 {[%emt 0:00:10]} Nxd5 {[%emt 0:00:07]} 5. e4 {[%emt 0:00:07]} Nxc3 {[%emt 0:00:07]} 6. bxc3 {[%emt 0:00:06]} Bg7 {[%emt 0:00:16]} 7. Nf3 {[%emt 0:00:09]} c5 {[%emt 0:00:08]} 8. Rb1 {[%emt 0:00:07]} O-O {[%emt 0:02:57]} 9. Be2 {[%emt 0:00:35]} Nc6 {[%emt 0:08:54]} 10. d5 {[%emt 0:01:19]} Bxc3+ {[%emt 0:05:22]} 11. Bd2 {[%emt 0:01:21]} Bxd2+ {[%emt 0:00:07]} 12. Qxd2 {[%emt 0:00:06]} Nd4 {[%emt 0:00:35]} 13. Nxd4 {[%emt 0:00:21]} cxd4 {[%emt 0:00:02]} 14. Qxd4 {[%emt 0:00:14]} Qa5+ {[%emt 0:09:52]} 15. Qd2 {[%emt 0:01:46]} Qxd2+ {[%emt 0:00:26]} 16. Kxd2 {[%emt 0:00:02]} Rd8 {[%emt 0:00:02]} 17. Ke3 {[%emt 0:01:34]} e6 {[%emt 0:00:19]} 18. dxe6 {[%emt 0:05:40]} Bxe6 {[%emt 0:02:01]} 19. Rxb7 {[%emt 0:00:47]} Rdb8 {[%emt 0:00:59]} 20. Rxb8+ {[%emt 0:16:10]} Rxb8 {[%emt 0:00:17]} 21. Ra1 {[%emt 0:00:06]} Rb2 {[%emt 0:01:28]} 22. a3 {[%emt 0:08:03]} Rb3+ {[%emt 0:01:37]} 23. Kd2 {[%emt 0:00:26]} Rb2+ {[%emt 0:00:19]} 24. Ke1 {[%emt 0:06:26]} Kf8 {[%emt 0:04:11]} 25. Rd1 {[%emt 0:01:52]} Ke7 {[%emt 0:03:07]} 26. Rd4 {[%emt 0:04:30]} Bd7 {[%emt 0:02:44]} 27. Rb4 {[%emt 0:05:59]} Ra2 {[%emt 0:13:39]} 28. Rb3 {[%emt 0:03:49]} a5 {[%emt 0:04:29]} 29. Bc4 {[%emt 0:03:09]} Rc2 {[%emt 0:23:25]} 30. Bd5 {[%emt 0:02:47]} f6 {[%emt 0:02:09]} 31. h4 {[%emt 0:07:15]} h6 {[%emt 0:01:35]} 32. g3 {[%emt 0:06:58]} a4 {[%emt 0:01:26]} 33. Re3 {[%emt 0:07:34]} Kd6 {[%emt 0:02:15]} 34. f4 {[%emt 0:00:37]} Kc5 {[%emt 0:01:30]} 35. Bf7 {[%emt 0:01:42]} Kd4 {[%emt 0:00:33]} 36. Re2 {[%emt 0:00:57]} Rxe2+ {[%emt 0:01:13]} 37. Kxe2 {[%emt 0:00:01]} Kxe4 {[%emt 0:03:32]} 38. Bxg6+ {[%emt 0:00:17]} Kd4 {[%emt 0:00:26]} 39. Kd2 {[%emt 0:01:16]} f5 {[%emt 0:03:23]} 40. Bh5 {[%emt 0:00:00]} Bc6 {[%emt 0:00:00]} 41. Bd1 {[%emt 0:07:46]} Ke4 {[%emt 0:04:17]} 42. Bh5 {[%emt 0:06:20]} Kd4 {[%emt 0:00:19]} 43. Be2 {[%emt 0:04:49]} Ke4 {[%emt 0:01:28]} 44. Bd1 {[%emt 0:00:34]} Bd7 {[%emt 0:00:51]} 45. h5 {[%emt 0:00:27]} Kd4 {[%emt 0:01:10]} 46. Be2 {[%emt 0:03:01]} Ke4 {[%emt 0:01:13]} 47. Kc3 {[%emt 0:00:20]} Ke3 {[%emt 0:00:11]} 48. Bd3 {[%emt 0:00:11]} Kf3 {[%emt 0:00:26]} 49. Kd4 {[%emt 0:00:05]} Kxg3 {[%emt 0:00:43]} 50. Ke5 {[%emt 0:00:02]} Kg4 {[%emt 0:00:18]} 51. Be2+ {[%emt 0:00:10]} Kg3 {[%emt 0:00:57]} 52. Bd1 {[%emt 0:00:30]} Kh4 {[%emt 0:01:07]} 53. Kd6 {[%emt 0:13:09]} Bb5 {[%emt 0:06:52]} 54. Ke6 {[%emt 0:00:28]} Bd3 {[%emt 0:00:16]} 55. Kf6 {[%emt 0:03:04]} Kg3 {[%emt 0:00:29]} 56. Ke5 {[%emt 0:02:38]} Kh4 {[%emt 0:00:13]} 57. Bf3 {[%emt 0:06:29]} Bc2 {[%emt 0:00:42]} 58. Be2 {[%emt 0:00:28]} Kg3 {[%emt 0:00:14]} 59. Bb5 {[%emt 0:00:13]} Kh4 {[%emt 0:01:00]} 60. Be8 {[%emt 0:00:29]} Kg4 {[%emt 0:00:15]} 61. Bd7 {[%emt 0:00:30]} Be4 {[%emt 0:00:28]} 62. Bxa4 {[%emt 0:01:09]} Kxh5 {[%emt 0:00:09]} 63. Bd1+ {[%emt 0:00:19]} Kg6 {[%emt 0:00:42]} 64. a4 {[%emt 0:00:29]} h5 {[%emt 0:01:15]} 65. Be2 {[%emt 0:00:01]} h4 {[%emt 0:01:56]} 66. Bf1 {[%emt 0:00:05]} Kf7 {[%emt 0:02:53]} 67. Kd6 {[%emt 0:01:35]} Kf6 {[%emt 0:00:35]} 68. a5 {[%emt 0:00:15]} Bf3 {[%emt 0:00:51]} 69. a6 {[%emt 0:00:17]} Be4 {[%emt 0:01:14]} 70. Bh3 {[%emt 0:00:21]} Bd3 {[%emt 0:02:46]} 71. a7 {[%emt 0:00:08]} Be4 {[%emt 0:00:01]} 72. Kc7 {[%emt 0:00:11]} Bd5 {[%emt 0:01:21]} 73. Kb8 {[%emt 0:00:06]} Ke6 {[%emt 0:00:04]} 74. a8=Q {[%emt 0:00:17]} Bxa8 {[%emt 0:00:02]} 75. Kxa8 {[%emt 0:00:07]} 1-0

[Event "4th Batumi Cup 2018"]
[Site "Batumi"]
[Date "2018.07.03"]
[Round "2"]
[White "Bashirov, Teymur"]
[Black "Khomeriki, Nino"]
[Result "0-1"]
[ECO "A47"]
[WhiteElo "2379"]
[BlackElo "2257"]
[Annotator "NA"]
[PlyCount "78"]
[EventDate "2018.07.03"]
[EventType "swiss"]
[EventCountry "GEO"]
[SourceTitle "playchess.com"]
[Source "ChessBase"]
[SourceQuality "1"]
[TimeControl "40/5400+30:1800+30"]

1. d4 {[%emt 0:01:03]} Nf6 {[%emt 0:00:00]} 2. Nf3 {[%emt 0:00:18]} e6 {[%emt 0:00:00]} 3. e3 {[%emt 0:00:19]} c5 {[%emt 0:00:43]} 4. Bd3 {[%emt 0:01:20]} b6 {[%emt 0:01:49]} 5. b3 {[%emt 0:01:15]} Bb7 {[%emt 0:00:13]} 6. Bb2 {[%emt 0:00:58]} Be7 {[%emt 0:00:08]} 7. Nbd2 {[%emt 0:00:30]} O-O {[%emt 0:00:17]} 8. O-O {[%emt 0:00:14]} Nc6 {[%emt 0:01:17]} 9. a3 {[%emt 0:00:31]} Rc8 {[%emt 0:02:58]} 10. Qe2 {[%emt 0:07:44]} d6 {[%emt 0:02:08]} 11. c4 {[%emt 0:04:16]} h6 {[%emt 0:06:19]} 12. Rad1 {[%emt 0:09:50]} Qc7 {[%emt 0:08:09]} 13. dxc5 {[%emt 0:08:40]} bxc5 {[%emt 0:01:30]} 14. Bc2 {[%emt 0:03:19]} Rfd8 {[%emt 0:09:47]} 15. Qd3 {[%emt 0:11:47]} Kf8 {[%emt 0:04:01]} 16. e4 {[%emt 0:11:59]} Ng4 {[%emt 0:03:14]} 17. e5 {[%emt 0:07:28]} dxe5 {[%emt 0:15:38]} 18. Qh7 {[%emt 0:00:18]} f5 {[%emt 0:00:55]} 19. Qg6 {[%emt 0:12:03]} Nf6 {[%emt 0:14:10]} 20. Rfe1 {[%emt 0:07:06]} Bd6 {[%emt 0:03:42]} 21. Nf1 {[%emt 0:01:13]} Ne7 {[%emt 0:01:09]} 22. Qg3 {[%emt 0:00:53]} Bxf3 {[%emt 0:03:06]} 23. Qxf3 {[%emt 0:00:43]} e4 {[%emt 0:00:27]} 24. Qh3 {[%emt 0:00:41]} Be5 {[%emt 0:00:19]} 25. Bxe5 {[%emt 0:01:26]} Qxe5 {[%emt 0:00:06]} 26. Rxd8+ {[%emt 0:03:20]} Rxd8 {[%emt 0:00:10]} 27. Qe3 {[%emt 0:00:55]} Nc6 {[%emt 0:03:42]} 28. g3 {[%emt 0:01:21]} Ng4 {[%emt 0:01:10]} 29. Qc1 {[%emt 0:00:47]} Qc3 {[%emt 0:00:43]} 30. h3 {[%emt 0:00:54]} Nd4 {[%emt 0:00:20]} 31. hxg4 {[%emt 0:02:19]} Qxe1 {[%emt 0:00:20]} 32. Qe3 {[%emt 0:00:38]} Qxe3 {[%emt 0:05:31]} 33. Nxe3 {[%emt 0:00:02]} a5 {[%emt 0:01:18]} 34. gxf5 {[%emt 0:00:20]} exf5 {[%emt 0:00:06]} 35. Bd1 {[%emt 0:00:49]} g6 {[%emt 0:00:27]} 36. Kf1 {[%emt 0:00:16]} Rb8 {[%emt 0:00:09]} 37. Nd5 {[%emt 0:01:02]} Nxb3 {[%emt 0:00:22]} 38. Nc7 {[%emt 0:00:29]} Ke7 {[%emt 0:01:04]} 39. Nb5 {[%emt 0:00:32]} Nd2+ {[%emt 0:00:11]} 0-1

[Event "4th Batumi Cup 2018"]
[Site "Batumi"]
[Date "2018.07.03"]
[Round "2"]
[White "Mgeladze, Tamaz"]
[Black "Levin, Evgeny A"]
[Result "1/2-1/2"]
[ECO "A30"]
[WhiteElo "2374"]
[BlackElo "2539"]
[Annotator "ChessBase"]
[PlyCount "40"]
[EventDate "2018.07.03"]
[EventType "swiss"]
[EventCountry "GEO"]
[SourceTitle "playchess.com"]
[Source "ChessBase"]
[SourceQuality "1"]
[TimeControl "40/5400+30:1800+30"]

1. c4 {[%emt 0:00:00]} b6 {[%emt 0:01:34]} 2. Nf3 {[%emt 0:02:57]} Bb7 {[%emt 0:00:30]} 3. g3 {[%emt 0:00:05]} c5 {[%emt 0:00:25]} 4. Bg2 {[%emt 0:00:11]} Nf6 {[%emt 0:00:23]} 5. Nc3 {[%emt 0:00:16]} e6 {[%emt 0:00:43]} 6. O-O {[%emt 0:04:04]} Be7 {[%emt 0:00:04]} 7. b3 {[%emt 0:01:39]} O-O {[%emt 0:01:15]} 8. Bb2 {[%emt 0:00:05]} d6 {[%emt 0:00:28]} 9. Re1 {[%emt 0:03:21]} Nbd7 {[%emt 0:32:50]} 10. e4 {[%emt 0:03:19]} e5 {[%emt 0:03:14]} 11. d3 {[%emt 0:04:39]} Re8 {[%emt 0:07:39]} 12. Nd2 {[%emt 0:03:14]} Bf8 {[%emt 0:02:56]} 13. Nf1 {[%emt 0:04:46]} g6 {[%emt 0:03:24]} 14. Ne3 {[%emt 0:02:45]} Bg7 {[%emt 0:02:45]} 15. a3 {[%emt 0:00:39]} Nf8 {[%emt 0:05:08]} 16. b4 {[%emt 0:00:27]} Ne6 {[%emt 0:00:47]} 17. b5 {[%emt 0:00:39]} Nd4 {[%emt 0:02:48]} 18. a4 {[%emt 0:01:33]} a6 {[%emt 0:01:18]} 19. bxa6 {[%emt 0:12:49]} Rxa6 {[%emt 0:00:42]} 20. Nb5 {[%emt 0:00:19]} Ne6 {[%emt 0:08:57]} 1/2-1/2

[Event "4th Batumi Cup 2018"]
[Site "Batumi"]
[Date "2018.07.03"]
[Round "2"]
[White "Pogosyan, Stefan"]
[Black "Rahul Srivatshav P"]
[Result "1-0"]
[ECO "A15"]
[WhiteElo "2356"]
[BlackElo "2397"]
[Annotator "NA"]
[PlyCount "75"]
[EventDate "2018.07.03"]
[EventType "swiss"]
[EventCountry "GEO"]
[SourceTitle "playchess.com"]
[Source "ChessBase"]
[SourceQuality "1"]
[TimeControl "40/5400+30:1800+30"]

1. Nf3 {[%emt 0:07:30]} Nf6 {[%emt 0:00:00]} 2. b3 {[%emt 0:00:14]} g6 {[%emt 0:00:42]} 3. Bb2 {[%emt 0:00:11]} Bg7 {[%emt 0:00:34]} 4. d4 {[%emt 0:00:26]} O-O {[%emt 0:01:43]} 5. e3 {[%emt 0:00:57]} d6 {[%emt 0:01:35]} 6. Be2 {[%emt 0:00:26]} Nbd7 {[%emt 0:03:38]} 7. O-O {[%emt 0:00:49]} e5 {[%emt 0:04:09]} 8. c4 {[%emt 0:04:20]} exd4 {[%emt 0:08:11]} 9. Nxd4 {[%emt 0:01:48]} Re8 {[%emt 0:02:58]} 10. Nc3 {[%emt 0:00:28]} Nc5 {[%emt 0:02:34]} 11. Nd5 {[%emt 0:06:19]} Nxd5 {[%emt 0:10:13]} 12. cxd5 {[%emt 0:00:11]} Bd7 {[%emt 0:02:28]} 13. Rc1 {[%emt 0:04:06]} a5 {[%emt 0:06:02]} 14. a3 {[%emt 0:05:06]} b6 {[%emt 0:31:28]} 15. b4 {[%emt 0:05:29]} Ne4 {[%emt 0:05:30]} 16. Qc2 {[%emt 0:10:44]} Ra7 {[%emt 0:01:17]} 17. Bd3 {[%emt 0:02:28]} Nf6 {[%emt 0:00:53]} 18. e4 {[%emt 0:02:24]} Ng4 {[%emt 0:15:05]} 19. bxa5 {[%emt 0:06:27]} bxa5 {[%emt 0:00:31]} 20. h3 {[%emt 0:00:13]} Ne5 {[%emt 0:08:38]} 21. Be2 {[%emt 0:05:20]} g5 {[%emt 0:01:16]} 22. Bb5 {[%emt 0:02:04]} Rb7 {[%emt 0:01:48]} 23. Bxd7 {[%emt 0:04:48]} Qxd7 {[%emt 0:00:07]} 24. Bc3 {[%emt 0:02:32]} a4 {[%emt 0:05:07]} 25. Nf5 {[%emt 0:01:17]} Rb3 {[%emt 0:01:02]} 26. f4 {[%emt 0:04:21]} gxf4 {[%emt 0:00:46]} 27. Rxf4 {[%emt 0:00:11]} h5 {[%emt 0:01:20]} 28. Qf2 {[%emt 0:02:55]} h4 {[%emt 0:00:38]} 29. Bxe5 {[%emt 0:03:19]} Rxe5 {[%emt 0:01:02]} 30. Rg4 {[%emt 0:00:18]} Rxf5 {[%emt 0:00:00]} 31. exf5 {[%emt 0:00:29]} f6 {[%emt 0:00:15]} 32. Qa7 {[%emt 0:02:00]} Rxa3 {[%emt 0:00:44]} 33. Qxc7 {[%emt 0:00:16]} Qxc7 {[%emt 0:00:26]} 34. Rxc7 {[%emt 0:00:06]} Ra1+ {[%emt 0:00:06]} 35. Kh2 {[%emt 0:00:15]} a3 {[%emt 0:00:01]} 36. Rgxg7+ {[%emt 0:00:11]} Kf8 {[%emt 0:00:15]} 37. Rh7 {[%emt 0:00:14]} Kg8 {[%emt 0:00:01]} 38. Rhd7 {[%emt 0:00:02]} 1-0

[Event "4th Batumi Cup 2018"]
[Site "Batumi"]
[Date "2018.07.03"]
[Round "2"]
[White "Chkhaidze, Nikoloz"]
[Black "Martynov, Roman"]
[Result "1/2-1/2"]
[ECO "E13"]
[WhiteElo "2337"]
[BlackElo "2366"]
[Annotator "NA"]
[PlyCount "205"]
[EventDate "2018.07.03"]
[EventType "swiss"]
[EventCountry "GEO"]
[SourceTitle "playchess.com"]
[Source "ChessBase"]
[SourceQuality "1"]
[TimeControl "40/5400+30:1800+30"]

1. d4 {[%emt 0:00:00]} Nf6 {[%emt 0:00:00]} 2. c4 {[%emt 0:00:00]} e6 {[%emt 0:00:28]} 3. Nc3 {[%emt 0:00:00]} Bb4 {[%emt 0:00:52]} 4. Nf3 {[%emt 0:00:00]} b6 {[%emt 0:02:43]} 5. Bg5 {[%emt 0:00:00]} Bb7 {[%emt 0:00:32]} 6. e3 {[%emt 0:00:09]} h6 {[%emt 0:01:18]} 7. Bh4 {[%emt 0:00:06]} g5 {[%emt 0:00:26]} 8. Bg3 {[%emt 0:00:05]} Ne4 {[%emt 0:00:18]} 9. Qc2 {[%emt 0:00:15]} Bxc3+ {[%emt 0:00:39]} 10. bxc3 {[%emt 0:00:05]} d6 {[%emt 0:00:26]} 11. Bd3 {[%emt 0:00:10]} f5 {[%emt 0:02:10]} 12. d5 {[%emt 0:00:23]} Na6 {[%emt 0:07:28]} 13. Bxe4 {[%emt 0:00:57]} fxe4 {[%emt 0:00:12]} 14. Qxe4 {[%emt 0:00:03]} Qf6 {[%emt 0:00:21]} 15. Qxe6+ {[%emt 0:03:02]} Qxe6 {[%emt 0:00:03]} 16. dxe6 {[%emt 0:00:06]} Nc5 {[%emt 0:00:45]} 17. O-O {[%emt 0:05:34]} Bxf3 {[%emt 0:10:19]} 18. gxf3 {[%emt 0:00:05]} Nxe6 {[%emt 0:00:05]} 19. Kg2 {[%emt 0:02:31]} Rf8 {[%emt 0:04:57]} 20. Rh1 {[%emt 0:08:55]} Kd7 {[%emt 0:08:11]} 21. h4 {[%emt 0:02:11]} Rf7 {[%emt 0:01:12]} 22. hxg5 {[%emt 0:04:04]} hxg5 {[%emt 0:02:54]} 23. Rh6 {[%emt 0:00:32]} Raf8 {[%emt 0:01:37]} 24. Rah1 {[%emt 0:00:18]} Rxf3 {[%emt 0:01:18]} 25. Rg6 {[%emt 0:01:04]} R8f7 {[%emt 0:38:36]} 26. Rhh6 {[%emt 0:11:06]} Nc5 {[%emt 0:00:29]} 27. Bf4 {[%emt 0:01:53]} Rxf2+ {[%emt 0:00:53]} 28. Kxf2 {[%emt 0:00:04]} gxf4 {[%emt 0:00:08]} 29. Kf3 {[%emt 0:05:10]} fxe3+ {[%emt 0:02:12]} 30. Kxe3 {[%emt 0:00:23]} Kc6 {[%emt 0:00:26]} 31. Rg8 {[%emt 0:01:55]} Re7+ {[%emt 0:01:35]} 32. Kd2 {[%emt 0:54:54]} Re4 {[%emt 0:01:22]} 33. Rh7 {[%emt 0:02:05]} Rxc4 {[%emt 0:00:25]} 34. Rgg7 {[%emt 0:53:25]} Na6 {[%emt 0:01:04]} 35. Kc2 {[%emt 0:52:53]} Kb7 {[%emt 0:05:02]} 36. Rg6 {[%emt 0:04:43]} Kc6 {[%emt 0:01:15]} 37. Rgg7 {[%emt 0:00:13]} b5 {[%emt 0:00:45]} 38. Kb2 {[%emt 0:01:47]} Kb6 {[%emt 0:00:49]} 39. Rg3 {[%emt 0:00:58]} Nc5 {[%emt 0:00:38]} 40. Rgh3 {[%emt 0:00:00]} Rg4 {[%emt 0:00:00]} 41. Rh2 {[%emt 0:01:48]} a5 {[%emt 0:35:37]} 42. R7h4 {[%emt 1:16:26]} Rg1 {[%emt 0:01:55]} 43. R4h3 {[%emt 0:04:45]} Na4+ {[%emt 0:26:37]} 44. Kc2 {[%emt 0:04:52]} Ra1 {[%emt 0:00:53]} 45. Kd3 {[%emt 0:00:18]} Rc1 {[%emt 0:02:10]} 46. Kd2 {[%emt 0:01:23]} Ra1 {[%emt 0:00:50]} 47. Kd3 {[%emt 0:00:07]} Nc5+ {[%emt 0:00:24]} 48. Ke3 {[%emt 0:00:35]} Kc6 {[%emt 0:01:38]} 49. Rh8 {[%emt 0:03:12]} Rd1 {[%emt 0:09:48]} 50. Ke2 {[%emt 0:02:24]} Ra1 {[%emt 0:02:51]} 51. Ke3 {[%emt 0:00:24]} Na4 {[%emt 0:01:37]} 52. Kd3 {[%emt 0:07:57]} Rc1 {[%emt 0:01:49]} 53. Rc2 {[%emt 0:00:18]} Nc5+ {[%emt 0:00:14]} 54. Kd2 {[%emt 0:00:10]} Rg1 {[%emt 0:00:09]} 55. Rh3 {[%emt 0:03:21]} Na4 {[%emt 0:01:03]} 56. Kd3 {[%emt 0:01:58]} Nb6 {[%emt 0:01:06]} 57. Rch2 {[%emt 0:00:31]} Ra1 {[%emt 0:01:17]} 58. Rh7 {[%emt 0:00:59]} Nd5 {[%emt 0:00:42]} 59. Rf7 {[%emt 0:02:22]} Rc1 {[%emt 0:00:51]} 60. Rc2 {[%emt 0:00:43]} Rg1 {[%emt 0:00:03]} 61. Rcf2 {[%emt 0:00:38]} Rg4 {[%emt 0:02:08]} 62. R7f3 {[%emt 0:02:01]} Ra4 {[%emt 0:01:04]} 63. Rc2 {[%emt 0:46:10]} Kc5 {[%emt 0:00:40]} 64. Kd2 {[%emt 0:00:57]} Rh4 {[%emt 0:00:37]} 65. Kd3 {[%emt 0:01:01]} Rh1 {[%emt 0:00:40]} 66. Rcf2 {[%emt 0:00:45]} Nb6 {[%emt 0:01:27]} 67. Rf1 {[%emt 0:00:45]} Rh2 {[%emt 0:00:51]} 68. R1f2 {[%emt 0:00:07]} Rh4 {[%emt 0:00:15]} 69. Rf4 {[%emt 0:00:18]} Rh3+ {[%emt 0:00:13]} 70. R4f3 {[%emt 0:00:08]} Rh6 {[%emt 0:00:40]} 71. Rf6 {[%emt 0:00:13]} Rh4 {[%emt 0:00:42]} 72. R6f4 {[%emt 0:00:12]} Rh1 {[%emt 0:00:05]} 73. Rf1 {[%emt 0:00:07]} Rh3+ {[%emt 0:03:31]} 74. R4f3 {[%emt 0:00:14]} Rh8 {[%emt 0:01:10]} 75. Rf8 {[%emt 0:00:05]} Rh2 {[%emt 0:00:12]} 76. R1f2 {[%emt 0:00:03]} Rh1 {[%emt 0:00:37]} 77. Rf1 {[%emt 0:00:07]} Rh2 {[%emt 0:00:06]} 78. R1f2 {[%emt 0:00:06]} Rh4 {[%emt 0:00:05]} 79. R8f4 {[%emt 0:00:13]} Rh3+ {[%emt 0:00:00]} 80. R4f3 {[%emt 0:48:39]} Rxf3+ {[%emt 0:00:00]} 81. Rxf3 {[%emt 0:00:49]} d5 {[%emt 0:00:21]} 82. Rf7 {[%emt 0:00:57]} c6 {[%emt 0:00:08]} 83. Rf6 {[%emt 0:00:35]} b4 {[%emt 0:00:39]} 84. Rf7 {[%emt 0:02:10]} Na4 {[%emt 0:00:19]} 85. cxb4+ {[%emt 0:00:18]} axb4 {[%emt 0:00:01]} 86. Rb7 {[%emt 0:07:06]} Nb6 {[%emt 0:01:13]} 87. Kc2 {[%emt 0:00:12]} Kb5 {[%emt 0:00:22]} 88. Kb3 {[%emt 0:01:08]} c5 {[%emt 0:00:05]} 89. a4+ {[%emt 0:39:47]} bxa3 {[%emt 0:03:00]} 90. Kxa3 {[%emt 0:00:04]} c4 {[%emt 0:00:15]} 91. Rc7 {[%emt 0:00:45]} d4 {[%emt 0:03:52]} 92. Kb2 {[%emt 0:00:29]} d3 {[%emt 0:00:39]} 93. Rh7 {[%emt 0:13:14]} Kb4 {[%emt 0:00:26]} 94. Rh4 {[%emt 0:00:22]} Na4+ {[%emt 0:00:55]} 95. Kc1 {[%emt 0:02:01]} Kb3 {[%emt 0:00:27]} 96. Kd2 {[%emt 0:05:24]} Nb2 {[%emt 0:00:35]} 97. Rd4 {[%emt 0:00:55]} c3+ {[%emt 0:01:54]} 98. Kc1 {[%emt 0:00:09]} c2 {[%emt 0:00:49]} 99. Rd8 {[%emt 0:00:16]} Kc3 {[%emt 0:00:12]} 100. Rc8+ {[%emt 0:00:41]} Nc4 {[%emt 0:00:17]} 101. Rd8 {[%emt 0:00:14]} Ne5 {[%emt 0:01:25]} 102. Rc8+ {[%emt 0:00:16]} Kd4 {[%emt 0:00:48]} 103. Rxc2 {[%emt 0:00:11]} 1/2-1/2

[Event "4th Batumi Cup 2018"]
[Site "Batumi"]
[Date "2018.07.03"]
[Round "2"]
[White "Gvetadze, Sofio"]
[Black "Pourramezanali, Amirreza"]
[Result "0-1"]
[ECO "A13"]
[WhiteElo "2316"]
[BlackElo "2537"]
[Annotator "ChessBase"]
[PlyCount "86"]
[EventDate "2018.07.03"]
[EventType "swiss"]
[EventCountry "GEO"]
[SourceTitle "playchess.com"]
[Source "ChessBase"]
[SourceQuality "1"]
[TimeControl "40/5400+30:1800+30"]

1. c4 {[%emt 0:00:00]} e6 {[%emt 0:19:58]} 2. Nf3 {[%emt 0:00:00]} d5 {[%emt 0:00:06]} 3. g3 {[%emt 0:00:37]} dxc4 {[%emt 0:00:06]} 4. Qa4+ {[%emt 0:00:11]} Nd7 {[%emt 0:01:01]} 5. Bg2 {[%emt 0:00:20]} a6 {[%emt 0:00:38]} 6. Qxc4 {[%emt 0:00:06]} b5 {[%emt 0:00:14]} 7. Qc2 {[%emt 0:00:04]} Bb7 {[%emt 0:00:08]} 8. O-O {[%emt 0:00:21]} Ngf6 {[%emt 0:00:51]} 9. b3 {[%emt 0:00:23]} Be7 {[%emt 0:01:11]} 10. Bb2 {[%emt 0:00:06]} c5 {[%emt 0:00:55]} 11. d3 {[%emt 0:00:07]} O-O {[%emt 0:01:05]} 12. Nbd2 {[%emt 0:00:03]} Qb6 {[%emt 0:02:24]} 13. Rac1 {[%emt 0:00:16]} Rfd8 {[%emt 0:01:39]} 14. Qb1 {[%emt 0:00:09]} Rac8 {[%emt 0:00:50]} 15. Qa1 {[%emt 0:00:19]} Bf8 {[%emt 0:00:33]} 16. Rc2 {[%emt 0:02:11]} Nd5 {[%emt 0:01:36]} 17. a3 {[%emt 0:04:09]} Nb8 {[%emt 0:21:07]} 18. Rfc1 {[%emt 0:20:14]} Nc6 {[%emt 0:03:48]} 19. d4 {[%emt 0:05:27]} cxd4 {[%emt 0:06:47]} 20. Nxd4 {[%emt 0:00:14]} Bxa3 {[%emt 0:09:00]} 21. Rxc6 {[%emt 0:24:39]} Bxb2 {[%emt 0:01:24]} 22. Rxb6 {[%emt 0:00:11]} Bxa1 {[%emt 0:02:56]} 23. Rxa1 {[%emt 0:00:04]} Nxb6 {[%emt 0:00:08]} 24. Bxb7 {[%emt 0:00:07]} Rc7 {[%emt 0:01:38]} 25. Bf3 {[%emt 0:06:12]} Rxd4 {[%emt 0:00:13]} 26. Rxa6 {[%emt 0:00:05]} Nc8 {[%emt 0:01:51]} 27. Ne4 {[%emt 0:00:23]} h6 {[%emt 0:01:18]} 28. g4 {[%emt 0:01:41]} Kf8 {[%emt 0:04:15]} 29. Ra8 {[%emt 0:07:39]} Ke7 {[%emt 0:01:18]} 30. Rb8 {[%emt 0:00:03]} f5 {[%emt 0:00:13]} 31. gxf5 {[%emt 0:00:54]} exf5 {[%emt 0:00:02]} 32. Ng3 {[%emt 0:00:09]} Nd6 {[%emt 0:00:04]} 33. Rg8 {[%emt 0:00:33]} Kf7 {[%emt 0:00:23]} 34. Rd8 {[%emt 0:00:15]} f4 {[%emt 0:04:19]} 35. e3 {[%emt 0:03:23]} fxe3 {[%emt 0:01:22]} 36. fxe3 {[%emt 0:00:05]} Rd2 {[%emt 0:00:54]} 37. Nf1 {[%emt 0:01:07]} Rc1 {[%emt 0:01:10]} 38. Bg2 {[%emt 0:03:21]} Nc4 {[%emt 0:11:35]} 39. bxc4 {[%emt 0:07:20]} Rxd8 {[%emt 0:00:09]} 40. cxb5 {[%emt 0:00:00]} Rb1 {[%emt 0:00:00]} 41. Kf2 {[%emt 0:00:28]} Rxb5 {[%emt 0:00:31]} 42. Ng3 {[%emt 0:00:07]} Rd2+ {[%emt 0:00:26]} 43. Kf3 {[%emt 0:00:14]} Rbb2 {[%emt 0:00:09]} 0-1

[Event "4th Batumi Cup 2018"]
[Site "Batumi"]
[Date "2018.07.03"]
[Round "2"]
[White "Sanchez, Louis"]
[Black "Mosadeghpour, Masoud"]
[Result "0-1"]
[ECO "D78"]
[WhiteElo "2290"]
[BlackElo "2531"]
[Annotator "ChessBase"]
[PlyCount "68"]
[EventDate "2018.07.03"]
[EventType "swiss"]
[EventCountry "GEO"]
[SourceTitle "playchess.com"]
[Source "ChessBase"]
[SourceQuality "1"]
[TimeControl "40/5400+30:1800+30"]

1. Nf3 {[%emt 0:00:00]} Nf6 {[%emt 0:19:05]} 2. g3 {[%emt 0:00:34]} g6 {[%emt 0:00:05]} 3. Bg2 {[%emt 0:00:40]} Bg7 {[%emt 0:00:05]} 4. O-O {[%emt 0:01:12]} O-O {[%emt 0:00:06]} 5. d4 {[%emt 0:00:57]} d5 {[%emt 0:00:06]} 6. Ne5 {[%emt 0:01:06]} c6 {[%emt 0:07:56]} 7. c4 {[%emt 0:03:28]} Be6 {[%emt 0:05:57]} 8. cxd5 {[%emt 0:15:11]} Bxd5 {[%emt 0:10:21]} 9. Bh3 {[%emt 0:03:06]} Nbd7 {[%emt 0:18:15]} 10. Nxd7 {[%emt 0:03:41]} Nxd7 {[%emt 0:00:05]} 11. Nc3 {[%emt 0:00:53]} Nb6 {[%emt 0:00:34]} 12. Qc2 {[%emt 0:36:49]} f5 {[%emt 0:19:12]} 13. Rd1 {[%emt 0:28:53]} Bf7 {[%emt 0:02:13]} 14. e4 {[%emt 0:11:47]} fxe4 {[%emt 0:03:41]} 15. Nxe4 {[%emt 0:02:21]} Qd5 {[%emt 0:02:25]} 16. Bg5 {[%emt 0:05:11]} Rae8 {[%emt 0:00:53]} 17. Bg2 {[%emt 0:01:44]} Qf5 {[%emt 0:00:23]} 18. h4 {[%emt 0:04:43]} Bd5 {[%emt 0:00:19]} 19. Rac1 {[%emt 0:01:09]} Qg4 {[%emt 0:01:35]} 20. b3 {[%emt 0:00:56]} Rf7 {[%emt 0:02:37]} 21. Rd2 {[%emt 0:01:13]} Ref8 {[%emt 0:00:35]} 22. Re1 {[%emt 0:00:32]} h6 {[%emt 0:00:46]} 23. Be3 {[%emt 0:00:27]} a5 {[%emt 0:02:12]} 24. Rde2 {[%emt 0:00:52]} a4 {[%emt 0:00:49]} 25. Rd2 {[%emt 0:00:32]} Kh8 {[%emt 0:02:15]} 26. Rde2 {[%emt 0:00:30]} axb3 {[%emt 0:00:15]} 27. axb3 {[%emt 0:00:04]} Nc8 {[%emt 0:00:19]} 28. Nc5 {[%emt 0:00:37]} Bxg2 {[%emt 0:00:18]} 29. Kxg2 {[%emt 0:00:01]} Nd6 {[%emt 0:00:18]} 30. Nd3 {[%emt 0:00:59]} Nf5 {[%emt 0:00:44]} 31. Kh2 {[%emt 0:00:52]} Nxh4 {[%emt 0:00:17]} 32. Nf4 {[%emt 0:00:28]} Nf3+ {[%emt 0:00:36]} 33. Kg2 {[%emt 0:00:10]} Nxe1+ {[%emt 0:00:26]} 34. Rxe1 {[%emt 0:01:27]} Rxf4 {[%emt 0:00:06]} 0-1